[Event "German-ch Blitz Women 2022"]
[Site "Magdeburg"]
[Date "2022.08.13"]
[Round "8.5"]
[White "Grabowski, Petra"]
[Black "Staerk, Elisa"]
[Result "0-1"]
[ECO "B08"]
[WhiteElo "1643"]
[BlackElo "1947"]
[Annotator "TA"]
[PlyCount "110"]
[EventDate "2022.08.10"]
[EventType "tourn"]
[EventCountry "GER"]
[SourceTitle "playchess.com"]
[Source "ChessBase"]
[SourceQuality "1"]
[TimeControl "180+2"]

{[%evp 11,109,36,40,9,54,37,81,62,88,84,88,-23,-36,-189,-189,-166,-168,-157,-112,-173,-66,-60,0,-6,50,58,74,65,71,61,94,-169,-171,-200,-202,-249,-228,-237,-186,-184,-169,-172,-163,-297,-279,-356,-322,-322,-320,-339,-292,-1010,0,-178,0,-758,-62,-264,0,-376,-383,-378,-299,-299,-285,-320,-307,-398,-398,-397,-359,-435,-168,-383,-39,-337,-143,-424,-421,-430,-426,-427,-408,-420,-409,-550,-542,-1920,-1934,-29985,-29986,-29987,-29988,-29990,-29991,-29991,-29986,-29993,-29994,-29999]} 1. d4 {[%emt 0:00:01]} Nf6 {[%emt 0:00:00]} 2. Nf3 {[%emt 0:00:01]} g6 {[%emt 0:00:01]} 3. Nc3 {[%emt 0:00:03]} Bg7 {[%emt 0:00:02]} 4. e4 {[%emt 0:00:01]} d6 {[%emt 0:00:01]} 5. Be3 {[%emt 0:00:03]} O-O {[%emt 0:00:02]} 6. Qd2 {[%emt 0:00:01]} Nbd7 {[%emt 0:00:03]} 7. O-O-O {[%emt 0:00:02] B08: Pirc Defence: Classical System.} Ng4 {[%emt 0:00:01]} 8. Bg5 {[%emt 0:00:02] Black must now prevent h3.} h6 {[%emt 0:00:09]} 9. Bh4 {[%emt 0:00:01] White is better.} c6 {[%emt 0:00:08]} 10. h3 {[%emt 0:00:05]} Ngf6 {[%emt 0:00:02]} 11. g4 {[%emt 0:00:14]} (11. e5 $16) 11... b5 $1 $11 {[%emt 0:00:15] [#]} 12. Be2 $146 {[%emt 0:00:17]} ({Better is} 12. Bd3 $15) ({Predecessor:} 12. Bd3 Nb6 13. Qe2 b4 14. Nb1 Be6 15. e5 Nfd5 16. Qe4 Qc7 17. Nfd2 dxe5 18. Bg3 {0-1 (26) Cardenas Nunez,Y (2063)-Figueredo Dominguez,R (1880) Ciego de Avila 2018}) 12... b4 $19 {[%emt 0:00:01]} 13. Na4 {[%emt 0:00:04]} Nxe4 {[%emt 0:00:09]} 14. Qxb4 {[%emt 0:00:06]} g5 {[%emt 0:00:11]} 15. Bg3 {[%emt 0:00:04]} (15. Bd3 $17) 15... Nxg3 {[%emt 0:00:07]} (15... Rb8 $19 16. Qe1 c5) 16. fxg3 $15 {[%emt 0:00:01]} Qc7 {[%emt 0:00:09]} (16... Nf6 $15) 17. Qd2 {[%emt 0:00:16]} Nf6 {[%emt 0:00:10]} (17... d5 $11) 18. h4 $1 $14 {[%emt 0:00:10]} Nxg4 {[%emt 0:00:23]} 19. hxg5 {[%emt 0:00:05]} Nf2 $1 {[%emt 0:00:04][%csl LRd1,LRh1]} 20. gxh6 {[%emt 0:00:15] Intending Qg5 and mate.} Bf6 {[%emt 0:00:05] [#] Inhibits Qg5+.} 21. h7+ $2 {[%emt 0:00:10][%mdl 8192]} (21. g4 $1 $16 {[%cal Rg4g5] stays on course. And now g5 would win.} Nxh1 (21... Bxg4 22. Rhg1) 22. Rxh1) 21... Kh8 $19 {[%emt 0:00:04]} 22. Qh6 {[%emt 0:00:26][%cal Rh6f8]} Be6 {[%emt 0:00:27]} 23. Nc3 {[%emt 0:00:09]} Nxd1 {[%emt 0:00:05]} (23... Nxh1 $2 24. Rxh1 Rab8 25. Qh5) 24. Kxd1 {[%emt 0:00:07]} Rfb8 {[%emt 0:00:19]} 25. b3 {[%emt 0:00:07]} (25. Ne4 Rxb2 26. Nxf6 Rb1+ 27. Kd2 Rxh1 28. Qxh1 exf6 $19) 25... Qa5 {[%emt 0:00:03]} 26. Ne4 {[%emt 0:00:10]} Bg7 {[%emt 0:00:07]} 27. Qh4 {[%emt 0:00:09]} (27. Rh5 $142 Rb5 28. Rxb5 cxb5 29. Qg5) 27... Qxa2 {[%emt 0:00:12]} 28. Neg5 {[%emt 0:00:03]} Qa1+ {[%emt 0:00:09]} 29. Kd2 {[%emt 0:00:01]} Qa5+ {[%emt 0:00:01]} 30. Kd1 {[%emt 0:00:02]} Bf6 {[%emt 0:00:03][%cal Ob8b3] Strongly threatening ...Rxb3!} 31. Qf4 $2 {[%emt 0:00:12] [#]} (31. Bd3) 31... Rb5 $2 {[%emt 0:00:12]} 32. Nxe6 $2 {[%emt 0:00:06]} (32. Bxb5 $11 {and White has nothing to worry.} Bxg5 33. Nxg5 cxb5 34. Re1 (34. Nxf7+ $2 Bxf7 35. Re1 Rf8 $19)) 32... fxe6 $2 {[%emt 0:00:02]} (32... Rf5 $19 33. Qd2 fxe6 34. Qxa5 Rxa5) 33. Qe4 {[%emt 0:00:23][%mdl 8192]} (33. Bxb5 $11 cxb5 34. Rh6 Qa1+ 35. Ke2) 33... e5 $2 {[%emt 0:00:06]} 34. dxe5 $2 {[%emt 0:00:02]} ({White should play} 34. Rf1 $1 $15) 34... Bxe5 $2 {[%emt 0:00:06]} (34... dxe5 35. Re1 Rd8+ 36. Bd3 $17) ({Black should try} 34... Rd5+ $19 35. Bd3 Qa1+ 36. Kd2 Qxh1 37. exf6 exf6) 35. Nxe5 $4 {[%emt 0:00:01][%mdl 8192]} (35. Nh4 $11 {and White is okay.} Qa1+ 36. Kd2 Qc3+ 37. Kd1 Rd5+ 38. Bd3) 35... Rxe5 {[%emt 0:00:01] Dancing on a razor blade.} ({Avoid the trap} 35... Qa1+ $2 36. Kd2 Qa5+ 37. Kc1 Rxe5 38. Qd4 $19) 36. Qd4 {[%emt 0:00:03]} Qd5 {[%emt 0:00:05]} 37. Qxd5 {[%emt 0:00:03]} Rxd5+ {[%mdl 4096] Endgame KRR-KRB} (37... cxd5 $2 {too greedy.} 38. g4 $19) 38. Ke1 Rf8 {[%emt 0:00:02]} 39. Bc4 {[%emt 0:00:04]} Re5+ {[%emt 0:00:01]} ({But not} 39... Rg5 $2 40. Rg1 $19) 40. Kd2 {[%emt 0:00:00]} Rf2+ {[%emt 0:00:02]} 41. Kc3 {[%emt 0:00:01]} c5 $2 {[%emt 0:00:01]} (41... Re3+ 42. Kb2 Rxg3) 42. Ra1 $2 {[%emt 0:00:03]} (42. Bd3 {is the only way for White.}) 42... Rf3+ $2 {[%emt 0:00:02]} (42... Re3+ $19 43. Kb2 Rxg3 44. Rxa7 Re3 45. Ra8+ Kxh7) 43. Kb2 $2 {[%emt 0:00:01][%mdl 8192]} ({Only move:} 43. Bd3 $15) 43... Rxg3 {[%emt 0:00:02]} (43... Kxh7 $19 {and Black stays clearly on top.} 44. g4 Rf4 45. Rxa7 Rxg4) 44. Rxa7 $2 {[%emt 0:00:01][%mdl 8192]} (44. Bd3 $17) 44... Kxh7 {[%emt 0:00:01]} 45. Rc7 {[%emt 0:00:04]} Rg2 {[%emt 0:00:02]} 46. Bd3+ {[%emt 0:00:02]} Kh6 {[%emt 0:00:04]} 47. Rc8 {[%emt 0:00:01]} Re3 {[%emt 0:00:01] aiming for ...Rxd3.} 48. Rh8+ {[%emt 0:00:02]} Kg7 {[%emt 0:00:02]} 49. Re8 {[%emt 0:00:02]} Rxd3 {[%emt 0:00:02]} 50. Ka3 {[%emt 0:00:01]} Rxc2 {[%emt 0:00:01] Black mates.} 51. Rxe7+ {[%emt 0:00:02]} Kf6 {[%emt 0:00:01]} 52. Rd7 {[%emt 0:00:01]} Ke5 {[%emt 0:00:00]} 53. Rd8 {[%emt 0:00:01]} Rdd2 {[%emt 0:00:02][%csl Gd2][%cal Rc2a2]} 54. Re8+ {[%emt 0:00:04]} Kd5 {[%emt 0:00:01][%csl Gd2][%cal Rc2a2]} 55. Rg8 {[%emt 0:00:01]} Ra2# {Weighted Error Value: White=1.08/Black=0.76} 0-1

[Event "German-ch Blitz Women 2022"]
[Site "Magdeburg"]
[Date "2022.08.13"]
[Round "8.6"]
[White "Braun, Kristin"]
[Black "Zschischang, Marine"]
[Result "1-0"]
[ECO "C01"]
[WhiteElo "1897"]
[BlackElo "2083"]
[Annotator "RC"]
[PlyCount "192"]
[EventDate "2022.08.10"]
[EventType "tourn"]
[EventCountry "GER"]
[SourceTitle "playchess.com"]
[Source "ChessBase"]
[SourceQuality "1"]
[TimeControl "180+2"]

1. e4 e6 2. d4 d5 3. exd5 exd5 4. Nf3 Nf6 5. c4 Be7 6. Nc3 c6 7. Be2 dxc4 8. Bxc4 O-O 9. O-O Bg4 10. Be3 Nbd7 11. h3 Bh5 12. a3 Nb6 13. Ba2 Nfd5 14. g4 Bg6 15. Ne5 Bf6 16. Nxg6 hxg6 17. Qd2 Qe7 18. Rae1 Qd7 19. Ne4 Be7 20. Bg5 Nf6 21. Nc3 Rad8 22. Rd1 Bd6 23. d5 Bc7 24. Bxf6 gxf6 25. Ne4 Kg7 26. d6 Rde8 27. dxc7 Qxc7 28. Qd6 Qxd6 29. Nxd6 Re7 30. Rfe1 Rd7 31. Ne4 Rfd8 32. Rxd7 Rxd7 33. Kf1 Na4 34. b3 Nb6 35. b4 Rd3 36. Nc5 Rxa3 37. Bb3 Nd7 38. Rb1 Ne5 39. Nxb7 Nd3 40. Nc5 Nxb4 41. Bxf7 Kxf7 42. Rxb4 Rxh3 43. Rb7+ Kg8 44. Rxa7 Rh1+ 45. Kg2 Rc1 46. Nd7 f5 47. Rc7 fxg4 48. Ne5 Kf8 49. Nxg6+ Ke8 50. Ne5 c5 51. Nxg4 Kd8 52. Rc6 Kd7 53. Ra6 c4 54. Ra4 Kd6 55. Kf3 Kc5 56. Ke2 Kb5 57. Ra2 c3 58. Ne3 Kb4 59. Rc2 Rh1 60. Nd5+ Kb3 61. Rxc3+ Kb2 62. Re3 Kc2 63. Rc3+ Kb2 64. Rc7 Rh5 65. Rd7 Kb3 66. f4 Kc4 67. Ne3+ Kc5 68. Kf3 Kc6 69. Rf7 Kd6 70. Kg4 Rh1 71. Ra7 Re1 72. Nf5+ Kd5 73. Rd7+ Kc6 74. Rd6+ Kc7 75. Rd5 Kc6 76. Re5 Rg1+ 77. Kh5 Kd7 78. Nh4 Kd6 79. Re3 Kd7 80. f5 Kd6 81. f6 Kd5 82. Rf3 Rg8 83. f7 Rf8 84. Ng6 Rxf7 85. Rxf7 Ke6 86. Rf1 Kd5 87. Kg5 Ke4 88. Rf8 Kd5 89. Re8 Kd6 90. Kf6 Kd7 91. Re1 Kd6 92. Rd1+ Kc5 93. Ke5 Kc4 94. Rd8 Kc3 95. Ke4 Kb2 96. Rc8 Kb3 1-0

[Event "German-ch Blitz Women 2022"]
[Site "Magdeburg"]
[Date "2022.08.13"]
[Round "8.7"]
[White "Skibbe, Diana"]
[Black "Schuster, Rebekka"]
[Result "1/2-1/2"]
[ECO "C11"]
[WhiteElo "1943"]
[BlackElo "1815"]
[Annotator "TA"]
[PlyCount "38"]
[EventDate "2022.08.10"]
[EventType "tourn"]
[EventCountry "GER"]
[SourceTitle "playchess.com"]
[Source "ChessBase"]
[SourceQuality "1"]
[TimeControl "180+2"]

{[%evp 11,38,0,24,-39,23,17,31,24,29,20,46,53,289,281,279,-26,-13,-503,-485,-621,-621,-1019,-988,-930,0,-67,0,-870,0]} 1. e4 {[%emt 0:00:00][%cal Be2e4,Be4e5][%mdl 32]} e6 {[%emt 0:00:00]} 2. d4 {[%emt 0:00:01]} d5 {[%emt 0:00:01]} 3. Nc3 {[%emt 0:00:02]} Nf6 {[%emt 0:00:00]} 4. e5 {[%emt 0:00:01]} Nfd7 {[%emt 0:00:01]} 5. f4 {[%emt 0:00:01]} c5 {[%emt 0:00:01]} 6. Nf3 {[%emt 0:00:01]} a6 {[%emt 0:00:02]} 7. a4 {[%emt 0:00:04] C11: French: Classical System: 4 e5 and 4 Bg5 dxe4.} (7. g3 $11) 7... Nc6 {[%emt 0:00:01]} (7... cxd4 $15 8. Nxd4 Nc6) 8. Ne2 $1 $11 {[%emt 0:00:02][%cal Bc3e2,Be2d4,Bd4e6][%mdl 32]} cxd4 {[%emt 0:00:13]} 9. Nexd4 {[%emt 0:00:02] [#] White is slightly better.} Bc5 $146 {[%emt 0:00:02][%cal Od7e5]} ({Predecessor:} 9... Nxd4 10. Nxd4 Nc5 11. g3 Bd7 12. c3 Rc8 13. Bg2 a5 14. O-O g6 15. Kh1 Na6 {1-0 (30) Brekke,J (1988)-Hidalgo Maireles,J Mallorca 2004}) 10. c3 {[%emt 0:00:02]} O-O {[%emt 0:00:02]} 11. Bd3 {[%emt 0:00:05][%cal Od3h7] aiming for Bxh7+!} f6 $2 {[%emt 0:00:18]} ({Black should play} 11... Nxd4 $14 12. cxd4 Be7) 12. Nxe6 $18 {[%emt 0:00:06]} Qe7 {[%emt 0:00:02]} 13. Bxh7+ $2 {[%emt 0:00:10]} Kxh7 $11 {[%emt 0:00:04]} 14. Nfg5+ {[%emt 0:00:02][%mdl 8192]} fxg5 $19 {[%emt 0:00:27]} 15. Qh5+ {[%emt 0:00:07]} Kg8 {[%emt 0:00:03]} 16. Nxg5 {[%emt 0:00:03][%csl Gg5][%cal Rh5h7]} Nf6 {[%emt 0:00:06] Prevents Qh7+.} 17. Qe2 {[%emt 0:00:03]} Nd7 $2 {[%emt 0:00:33]} (17... Bg4 $19 18. Nf3 Nh5) 18. Qh5 $15 {[%emt 0:00:17][%csl Gg5][%cal Rh5h7]} Nf6 {[%emt 0:00:01] Against Qh7+} (18... g6 $5 19. Qxg6+ Qg7 20. Qe6+ {[#]} Rf7 $1 21. Qxd5 (21. Nxf7 Qxf7 22. Qg4+ Qg7 $17) 21... Ne7 $1 22. Qxf7+ Qxf7 23. Nxf7 Kxf7 $15) 19. Qe2 {[%emt 0:00:08]} Nd7 $2 {[%emt 0:00:01] Weighted Error Value: White=0.99/Black=1.15} ({Better is} 19... Bg4 $19 20. Nf3 Nh5) 1/2-1/2

[Event "German-ch Blitz Women 2022"]
[Site "Magdeburg"]
[Date "2022.08.13"]
[Round "8.8"]
[White "Rath, Alina"]
[Black "Fock, Sana"]
[Result "1-0"]
[ECO "A22"]
[WhiteElo "2062"]
[BlackElo "1807"]
[Annotator "NA RC"]
[PlyCount "62"]
[EventDate "2022.08.10"]
[EventType "tourn"]
[EventCountry "GER"]
[SourceTitle "playchess.com"]
[Source "ChessBase"]
[SourceQuality "1"]
[TimeControl "180+2"]

1. c4 {[%emt 0:00:01]} e5 {[%emt 0:00:01]} 2. Nc3 {[%emt 0:00:01]} Nf6 {[%emt 0:00:01]} 3. g3 {[%emt 0:00:01]} d5 {[%emt 0:00:01]} 4. cxd5 {[%emt 0:00:01]} Nxd5 {[%emt 0:00:02]} 5. Bg2 {[%emt 0:00:01]} Nb6 {[%emt 0:00:01]} 6. d3 {[%emt 0:00:01]} Nc6 {[%emt 0:00:03]} 7. Nf3 {[%emt 0:00:01]} Be7 {[%emt 0:00:05]} 8. O-O {[%emt 0:00:01]} Be6 {[%emt 0:00:01]} 9. a3 {[%emt 0:00:01]} a5 {[%emt 0:00:05]} 10. Be3 {[%emt 0:00:02]} O-O {[%emt 0:00:04]} 11. Rc1 {[%emt 0:00:03]} f5 {[%emt 0:00:08]} 12. Na4 {[%emt 0:00:02]} f4 {[%emt 0:00:16]} 13. Bc5 {[%emt 0:00:02]} Nxa4 {[%emt 0:00:37]} 14. Qxa4 {[%emt 0:00:03]} Kh8 {[%emt 0:00:27]} 15. Qb5 {[%emt 0:00:07]} Bxc5 {[%emt 0:00:13]} 16. Rxc5 {[%emt 0:00:17]} Nd4 {[%emt 0:00:43]} 17. Nxd4 {[%emt 0:00:04]} exd4 {[%emt 0:00:13]} 18. Qxb7 {[%emt 0:00:06]} Rb8 {[%emt 0:00:09]} 19. Qc6 {[%emt 0:00:04]} Bd7 {[%emt 0:00:13]} 20. Qxc7 {[%emt 0:00:02]} Rxb2 {[%emt 0:00:06]} 21. Qxd8 {[%emt 0:00:02]} Rxd8 {[%emt 0:00:01]} 22. Rd5 {[%emt 0:00:03]} Rbb8 {[%emt 0:00:04]} 23. Rxd4 {[%emt 0:00:04]} Be6 {[%emt 0:00:06]} 24. Rxd8+ {[%emt 0:00:02]} Rxd8 {[%emt 0:00:01]} 25. gxf4 {[%emt 0:00:01]} Rd4 {[%emt 0:00:01]} 26. Rb1 {[%emt 0:00:07]} g6 {[%emt 0:00:03]} 27. Be4 {[%emt 0:00:05]} Ra4 {[%emt 0:00:02]} 28. Rb6 {[%emt 0:00:05]} Bf5 {[%emt 0:00:06]} 29. Rb8+ {[%emt 0:00:09]} Kg7 {[%emt 0:00:01]} 30. Bc6 {[%emt 0:00:09]} Rxa3 {[%emt 0:00:04]} 31. Kg2 {[%emt 0:00:07]} Rc3 1-0

[Event "German-ch Blitz Women 2022"]
[Site "Magdeburg"]
[Date "2022.08.13"]
[Round "8.9"]
[White "Kunze, Kerstin"]
[Black "Heil, Marina"]
[Result "1-0"]
[ECO "B07"]
[WhiteElo "2020"]
[BlackElo "1926"]
[Annotator "TA"]
[PlyCount "51"]
[EventDate "2022.08.10"]
[EventType "tourn"]
[EventCountry "GER"]
[SourceTitle "playchess.com"]
[Source "ChessBase"]
[SourceQuality "1"]
[TimeControl "180+2"]

{[%evp 10,50,26,24,21,22,33,29,46,30,56,48,60,37,68,40,55,0,32,9,27,0,0,-27,0,0,0,-15,20,39,130,117,268,270,273,265,422,422,29988,29989,5789,3249,29999]} 1. e4 {[%emt 0:00:01]} d6 {[%emt 0:00:00]} 2. d4 {[%emt 0:00:01]} Nf6 {[%emt 0:00:02]} 3. Nc3 {[%emt 0:00:02]} Nbd7 {[%emt 0:00:01]} 4. Nf3 {[%emt 0:00:02]} e5 {[%emt 0:00:02]} 5. Be2 {[%emt 0:00:01]} Be7 {[%emt 0:00:01]} 6. O-O {[%emt 0:00:02]} c6 {[%emt 0:00:01] C41: Philidor Defence.} 7. a4 {[%emt 0:00:02]} a5 {[%emt 0:00:00]} 8. h3 {[%emt 0:00:01]} Qc7 {[%emt 0:00:02] White has an edge.} 9. Be3 {[%emt 0:00:13]} h6 {[%emt 0:00:03]} 10. Qd2 {[%emt 0:00:06]} g5 {[%emt 0:00:09][%cal Bg7g5,Bg5f4][%mdl 32]} 11. Nh2 {[%emt 0:00:45]} Nf8 {[%emt 0:00:13]} 12. Bc4 {[%emt 0:00:15]} Ng6 {[%emt 0:00:03] [#]} 13. dxe5 $146 {[%emt 0:00:16]} (13. Rad1 $14) ({Predecessor:} 13. Be2 Nf4 14. Ng4 h5 15. Nxf6+ Bxf6 16. Rad1 Qe7 17. dxe5 Bxe5 18. Rfe1 Rg8 19. Bf1 {0-1 (26) Scheckenbach,F (2101)-Koganov,M (2085) Prague 2020}) 13... dxe5 {[%emt 0:00:01]} 14. Rad1 {[%emt 0:00:02]} Nf4 {[%emt 0:00:04]} 15. Bxf4 {[%emt 0:00:03]} gxf4 {[%emt 0:00:01]} 16. Qe2 {[%emt 0:00:15]} Rg8 {[%emt 0:00:04] [#] White must now prevent ...Bxh3.} 17. Kh1 $1 {[%emt 0:00:00]} Rg7 {[%emt 0:00:23]} 18. Rg1 {[%emt 0:00:03]} Kf8 {[%emt 0:00:13]} 19. g3 {[%emt 0:00:03]} Bxh3 {[%emt 0:00:26]} (19... fxg3 $14 20. Rxg3 Rxg3 21. fxg3 Kg7) 20. gxf4 $16 {[%emt 0:00:07] And now Rxg7 would win.} exf4 $2 {[%emt 0:00:06] A mistake that costs the game.} (20... h5 $16 {was called for.}) 21. Rxg7 $18 {[%emt 0:00:05]} Kxg7 {[%emt 0:00:02] [#]} 22. Rg1+ $1 {[%emt 0:00:01]} Kh7 {[%emt 0:00:04]} (22... Kh8 {is a better defense.} 23. e5 Nh7) 23. e5 {[%emt 0:00:04]} Nd5 {[%emt 0:00:11]} (23... Bf5 $18 24. exf6 Bxf6) 24. Qd3+ {[%emt 0:00:11]} Kh8 {[%emt 0:00:15]} 25. Qxh3 {[%emt 0:00:02][%cal Rh3h6]} Qxe5 {[%emt 0:00:11]} 26. Qxh6# {[%emt 0:00:05] Weighted Error Value: White=0.10 (very precise) /Black=1.01} 1-0

[Event "German-ch Blitz Women 2022"]
[Site "Magdeburg"]
[Date "2022.08.13"]
[Round "8.10"]
[White "Doll, Rebecca"]
[Black "Leveikina, Jevgenija"]
[Result "0-1"]
[ECO "B15"]
[WhiteElo "1933"]
[BlackElo "2061"]
[Annotator "RC"]
[PlyCount "63"]
[EventDate "2022.08.10"]
[EventType "tourn"]
[EventCountry "GER"]
[SourceTitle "playchess.com"]
[Source "ChessBase"]
[SourceQuality "1"]
[TimeControl "180+2"]

1. e4 {[%emt 0:00:02]} c6 {[%emt 0:00:00]} 2. d4 {[%emt 0:00:02]} d5 {[%emt 0:00:00]} 3. Nd2 {[%emt 0:00:02]} dxe4 {[%emt 0:00:01]} 4. Nxe4 Nf6 5. Nxf6+ {[%emt 0:00:06]} exf6 {[%emt 0:00:02]} 6. Bc4 {[%emt 0:00:05]} Qe7+ {[%emt 0:00:01]} 7. Qe2 {[%emt 0:00:02]} Be6 {[%emt 0:00:01]} 8. Bxe6 {[%emt 0:00:13]} Qxe6 {[%emt 0:00:01]} 9. Be3 {[%emt 0:00:37]} Bd6 {[%emt 0:00:08]} 10. Nf3 {[%emt 0:00:07]} Nd7 {[%emt 0:00:01]} 11. O-O {[%emt 0:00:16]} O-O {[%emt 0:00:03]} 12. Rfe1 {[%emt 0:00:08]} Rfe8 {[%emt 0:00:02]} 13. Qd3 {[%emt 0:00:04]} Qd5 {[%emt 0:00:13]} 14. c4 {[%emt 0:00:05]} Qh5 {[%emt 0:00:01]} 15. h3 {[%emt 0:00:17]} Rad8 {[%emt 0:00:09]} 16. Qb3 {[%emt 0:00:12]} b6 {[%emt 0:00:07]} 17. Rad1 {[%emt 0:00:10]} f5 {[%emt 0:00:09]} 18. d5 {[%emt 0:00:11]} c5 {[%emt 0:00:03]} 19. Bc1 {[%emt 0:00:10]} Nf6 {[%emt 0:00:05]} 20. Nh2 {[%emt 0:00:30]} Ne4 {[%emt 0:00:06]} 21. Qf3 {[%emt 0:00:05]} Qg6 {[%emt 0:00:46]} 22. Nf1 {[%emt 0:00:03]} Ng5 {[%emt 0:00:05]} 23. Qd3 {[%emt 0:00:04]} Ne4 {[%emt 0:00:16]} 24. Qf3 {[%emt 0:00:07]} Be5 {[%emt 0:00:18]} 25. Ne3 {[%emt 0:00:03]} f4 {[%emt 0:00:17]} 26. Ng4 {[%emt 0:00:03]} Bd4 {[%emt 0:00:07]} 27. Bxf4 {[%emt 0:00:03]} h5 {[%emt 0:00:07]} 28. Ne3 {[%emt 0:00:01]} Bxb2 {[%emt 0:00:15]} 29. Bh2 {[%emt 0:00:05]} Bd4 {[%emt 0:00:01]} 30. Rf1 {[%emt 0:00:04]} Ng5 {[%emt 0:00:00]} 31. Qg3 {[%emt 0:00:04]} h4 {[%emt 0:00:09]} 32. Qg4 0-1

[Event "German-ch Blitz Women 2022"]
[Site "Magdeburg"]
[Date "2022.08.13"]
[Round "8.11"]
[White "Wulf, Constanze"]
[Black "Kosovska, Olena"]
[Result "0-1"]
[ECO "A04"]
[WhiteElo "1835"]
[BlackElo "1831"]
[Annotator "NA RC COMBH"]
[PlyCount "46"]
[EventDate "2022.08.10"]
[EventType "tourn"]
[EventCountry "GER"]
[SourceTitle "playchess.com"]
[Source "ChessBase"]
[SourceQuality "1"]
[TimeControl "180+2"]

1. Nf3 {[%emt 0:00:01]} c5 {[%emt 0:00:00]} 2. b3 {[%emt 0:00:02]} d5 {[%emt 0:00:02]} 3. Bb2 {[%emt 0:00:01]} e6 {[%emt 0:00:01]} 4. e3 {[%emt 0:00:01]} Nf6 {[%emt 0:00:01]} 5. Bb5+ {[%emt 0:00:03]} Nc6 {[%emt 0:00:01]} 6. O-O {[%emt 0:00:03]} Be7 {[%emt 0:00:02]} 7. d3 {[%emt 0:00:03]} O-O {[%emt 0:00:02]} 8. Bxc6 {[%emt 0:00:02]} bxc6 {[%emt 0:00:01]} 9. Nbd2 {[%emt 0:00:04]} Rb8 {[%emt 0:00:01]} 10. Re1 {[%emt 0:00:13]} Ba6 {[%emt 0:00:02]} 11. e4 {[%emt 0:00:05]} c4 {[%emt 0:00:05]} 12. dxc4 {[%emt 0:00:53]} dxc4 {[%emt 0:00:07]} 13. Be5 {[%emt 0:00:10]} Rb4 {[%emt 0:00:46]} 14. c3 {[%emt 0:00:23]} Rb7 {[%emt 0:00:07]} 15. Nxc4 {[%emt 0:00:04]} Bxc4 {[%emt 0:00:03]} 16. bxc4 {[%emt 0:00:02]} Qa5 {[%emt 0:00:04]} 17. Qe2 {[%emt 0:00:26]} Ng4 {[%emt 0:00:14]} 18. Bd4 {[%emt 0:00:19]} c5 {[%emt 0:00:02]} 19. Be5 {[%emt 0:00:12]} Nxe5 {[%emt 0:00:07]} 20. Nxe5 {[%emt 0:00:02]} Qxc3 {[%emt 0:00:02]} 21. Nf3 {[%emt 0:00:10]} Rb2 {[%emt 0:00:09]} 22. Qf1 {[%emt 0:00:18]} Rfb8 {[%emt 0:00:06]} 23. Rac1 {[%emt 0:00:06]} Qa5 {[%emt 0:00:02]} 0-1

[Event "German-ch Blitz Women 2022"]
[Site "Magdeburg"]
[Date "2022.08.13"]
[Round "8.12"]
[White "Stangl, Anita"]
[Black "Falke, Ornella"]
[Result "0-1"]
[ECO "B90"]
[WhiteElo "2023"]
[BlackElo "1912"]
[Annotator "NA RC"]
[PlyCount "48"]
[EventDate "2022.08.10"]
[EventType "tourn"]
[EventCountry "GER"]
[SourceTitle "playchess.com"]
[Source "ChessBase"]
[SourceQuality "1"]
[TimeControl "180+2"]

1. e4 {[%emt 0:00:00]} c5 {[%emt 0:00:01]} 2. Nf3 {[%emt 0:00:01]} d6 {[%emt 0:00:01]} 3. d4 {[%emt 0:00:01]} cxd4 4. Nxd4 {[%emt 0:00:00]} Nf6 {[%emt 0:00:02]} 5. Nc3 {[%emt 0:00:01]} a6 {[%emt 0:00:01]} 6. Bc4 {[%emt 0:00:02]} e6 {[%emt 0:00:01]} 7. a3 {[%emt 0:00:01]} Be7 {[%emt 0:00:12]} 8. O-O {[%emt 0:00:01]} O-O {[%emt 0:00:11]} 9. Nde2 {[%emt 0:00:01]} b5 {[%emt 0:00:04]} 10. Ba2 {[%emt 0:00:01]} Bb7 {[%emt 0:00:01]} 11. Ng3 {[%emt 0:00:01]} Nbd7 {[%emt 0:00:03]} 12. f4 {[%emt 0:00:01]} Nc5 {[%emt 0:00:03]} 13. Qe2 {[%emt 0:00:01]} Rc8 {[%emt 0:00:15]} 14. f5 {[%emt 0:00:02]} Re8 {[%emt 0:00:36]} 15. b4 {[%emt 0:00:12]} d5 {[%emt 0:00:34]} 16. bxc5 {[%emt 0:00:06]} Bxc5+ {[%emt 0:00:01]} 17. Kh1 {[%emt 0:00:00]} Bd4 {[%emt 0:00:03]} 18. Bg5 {[%emt 0:00:37]} Bxc3 {[%emt 0:00:19]} 19. Rad1 {[%emt 0:00:02]} Qc7 {[%emt 0:00:17]} 20. fxe6 {[%emt 0:00:18]} Rxe6 {[%emt 0:00:02]} 21. Bxf6 {[%emt 0:00:19]} Bxf6 {[%emt 0:00:02]} 22. Qg4 {[%emt 0:00:09]} Qxc2 {[%emt 0:00:08]} 23. exd5 {[%emt 0:00:04]} Qxa2 {[%emt 0:00:13]} 24. dxe6 {[%emt 0:00:01]} Qxg2# {[%emt 0:00:02]} 0-1